[Event "MČR v bleskovém šachu družstev 2019"]
[Site "Teplice, Czech Republic"]
[Date "2019.09.14"]
[Round "3.3"]
[White "Kral, David"]
[Black "Stocek, Jiri"]
[Result "0-1"]
[TimeControl "3 mim. + 2 s"]
[BlackTitle "GM"]
[WhiteFideId "326097"]
[BlackFideId "304760"]
[WhiteElo "2028"]
[BlackElo "2505"]

1. d4 {[%clk 00:03:03]} Nf6 {[%clk 00:03:02]} {[%emt 00:00:02]} 2. c4 {[%clk
00:03:05]} e6 {[%clk 00:03:03]} 3. Nc3 {[%clk 00:03:06]} Bb4 {[%clk 00:03:04]}
{[%emt 00:00:02]} 4. Bg5 {[%clk 00:03:07]} {[%emt 00:00:01]} c5 {[%clk
00:03:04]} {[%emt 00:00:02]} 5. e3 {[%clk 00:03:08]} {[%emt 00:00:01]} Qa5
{[%clk 00:03:00]} {[%emt 00:00:06]} 6. Bxf6 {[%clk 00:02:36]} {[%emt 00:00:33]}
Bxc3+ {[%clk 00:02:59]} {[%emt 00:00:03]} 7. bxc3 {[%clk 00:02:38]} {[%emt
00:00:01]} Qxc3+ {[%clk 00:02:59]} {[%emt 00:00:02]} 8. Ke2 {[%clk 00:02:38]}
{[%emt 00:00:01]} gxf6 {[%clk 00:02:38]} {[%emt 00:00:23]} 9. Rc1 {[%clk
00:02:35]} {[%emt 00:00:05]} Qa5 {[%clk 00:02:37]} {[%emt 00:00:03]} 10. Qc2
{[%clk 00:02:30]} {[%emt 00:00:07]} Nc6 {[%clk 00:02:26]} {[%emt 00:00:13]} 11.
Qc3 {[%clk 00:02:19]} {[%emt 00:00:14]} Qxc3 {[%clk 00:02:23]} {[%emt
00:00:05]} 12. Rxc3 {[%clk 00:02:19]} {[%emt 00:00:01]} cxd4 {[%clk 00:02:23]}
{[%emt 00:00:02]} 13. exd4 {[%clk 00:02:14]} {[%emt 00:00:08]} Nxd4+ {[%clk
00:02:23]} {[%emt 00:00:02]} 14. Kd3 {[%clk 00:02:15]} Nc6 {[%clk 00:02:21]}
{[%emt 00:00:05]} 15. Nf3 {[%clk 00:02:13]} {[%emt 00:00:04]} b6 {[%clk
00:02:08]} {[%emt 00:00:15]} 16. Be2 {[%clk 00:02:07]} {[%emt 00:00:08]} Nb4+
{[%clk 00:02:01]} {[%emt 00:00:09]} 17. Ke3 {[%clk 00:01:54]} {[%emt 00:00:15]}
Ke7 {[%clk 00:01:52]} {[%emt 00:00:10]} 18. a3 {[%clk 00:01:50]} {[%emt
00:00:06]} Na6 {[%clk 00:01:53]} {[%emt 00:00:01]} 19. Rd1 {[%clk 00:01:49]}
{[%emt 00:00:03]} Nc5 {[%clk 00:01:53]} {[%emt 00:00:02]} 20. Nd4 {[%clk
00:01:45]} {[%emt 00:00:05]} Bb7 {[%clk 00:01:52]} {[%emt 00:00:03]} 21. f3
{[%clk 00:01:43]} {[%emt 00:00:05]} Rhc8 {[%clk 00:01:42]} {[%emt 00:00:11]} 22.
h4 {[%clk 00:01:35]} {[%emt 00:00:10]} d5 {[%clk 00:01:23]} {[%emt 00:00:21]}
23. g4 {[%clk 00:01:25]} {[%emt 00:00:12]} Nd7 {[%clk 00:01:19]} {[%emt
00:00:06]} 24. Rdc1 {[%clk 00:01:17]} {[%emt 00:00:11]} dxc4 {[%clk 00:01:18]}
{[%emt 00:00:03]} 25. Rxc4 {[%clk 00:01:16]} {[%emt 00:00:02]} Rxc4 {[%clk
00:01:15]} {[%emt 00:00:05]} 26. Rxc4 {[%clk 00:01:04]} {[%emt 00:00:14]} Nc5
{[%clk 00:01:15]} {[%emt 00:00:02]} 27. h5 {[%clk 00:00:58]} {[%emt 00:00:08]}
Rd8 {[%clk 00:01:08]} {[%emt 00:00:09]} 28. h6 {[%clk 00:00:46]} {[%emt
00:00:14]} Rd5 {[%clk 00:01:03]} {[%emt 00:00:07]} 29. f4 {[%clk 00:00:40]}
{[%emt 00:00:09]} Rd8 {[%clk 00:00:56]} {[%emt 00:00:09]} 30. Nb5 {[%clk
00:00:35]} {[%emt 00:00:07]} Ba6 {[%clk 00:00:52]} {[%emt 00:00:05]} 31. a4
{[%clk 00:00:35]} {[%emt 00:00:02]} Bxb5 {[%clk 00:00:50]} {[%emt 00:00:04]} 32.
axb5 {[%clk 00:00:36]} {[%emt 00:00:01]} Kd6 {[%clk 00:00:39]} {[%emt
00:00:12]} 33. Rc2 {[%clk 00:00:35]} {[%emt 00:00:03]} Kc7 {[%clk 00:00:39]}
{[%emt 00:00:02]} 34. Bf3 {[%clk 00:00:31]} {[%emt 00:00:06]} Rd3+ {[%clk
00:00:39]} {[%emt 00:00:03]} 35. Kf2 {[%clk 00:00:32]} {[%emt 00:00:02]} Rb3
{[%clk 00:00:37]} {[%emt 00:00:03]} 36. Ra2 {[%clk 00:00:31]} {[%emt 00:00:03]}
Kb8 {[%clk 00:00:37]} {[%emt 00:00:03]} 37. Bc6 {[%clk 00:00:28]} {[%emt
00:00:06]} Nd3+ {[%clk 00:00:33]} {[%emt 00:00:05]} 38. Kg2 {[%clk 00:00:17]}
{[%emt 00:00:13]} Nxf4+ {[%clk 00:00:33]} {[%emt 00:00:03]} 39. Kf2 {[%clk
00:00:16]} {[%emt 00:00:03]} Ng2 40. Kxg2 {[%clk 00:00:17]} 0-1

[Event "MČR v bleskovém šachu družstev 2019"]
[Site "Teplice, Czech Republic"]
[Date "2019.09.14"]
[Round "3.4"]
[White "Vymazal, Bronislav"]
[Black "Krutsky, Martin"]
[Result "1-0"]
[TimeControl "3 mim. + 2 s"]
[WhiteFideId "318396"]
[BlackFideId "361526"]
[WhiteElo "2309"]
[BlackElo "1974"]

1. g3 {[%clk 00:03:02]} Nf6 {[%clk 00:03:03]} {[%emt 00:00:01]} 2. Bg2 {[%clk
00:03:04]} d5 {[%clk 00:03:02]} {[%emt 00:00:03]} 3. f4 {[%clk 00:03:05]} c5
{[%clk 00:03:01]} {[%emt 00:00:03]} 4. Nf3 {[%clk 00:03:06]} {[%emt 00:00:01]}
Nc6 {[%clk 00:03:01]} 5. O-O {[%clk 00:03:06]} {[%emt 00:00:02]} e6 {[%clk
00:02:57]} {[%emt 00:00:06]} 6. d3 {[%clk 00:03:05]} {[%emt 00:00:04]} Be7
{[%clk 00:02:56]} {[%emt 00:00:03]} 7. Nc3 {[%clk 00:02:57]} {[%emt 00:00:09]}
O-O {[%clk 00:02:42]} {[%emt 00:00:15]} 8. e4 {[%clk 00:02:57]} {[%emt
00:00:02]} b6 {[%clk 00:02:30]} {[%emt 00:00:14]} 9. e5 {[%clk 00:02:48]}
{[%emt 00:00:12]} Ne8 {[%clk 00:02:06]} {[%emt 00:00:26]} 10. Kh1 {[%clk
00:02:41]} {[%emt 00:00:09]} a6 {[%clk 00:01:59]} {[%emt 00:00:09]} 11. d4
{[%clk 00:02:32]} {[%emt 00:00:11]} cxd4 {[%clk 00:01:49]} {[%emt 00:00:12]} 12.
Ne2 {[%clk 00:02:32]} {[%emt 00:00:01]} f6 {[%clk 00:01:25]} {[%emt 00:00:27]}
13. Nexd4 {[%clk 00:02:19]} {[%emt 00:00:15]} Nxd4 {[%clk 00:01:19]} {[%emt
00:00:07]} 14. Nxd4 {[%clk 00:02:07]} {[%emt 00:00:14]} Qc7 {[%clk 00:01:06]}
{[%emt 00:00:15]} 15. Re1 {[%clk 00:02:03]} {[%emt 00:00:07]} fxe5 {[%clk
00:00:42]} {[%emt 00:00:26]} 16. fxe5 {[%clk 00:02:01]} {[%emt 00:00:04]} g6
{[%clk 00:00:30]} {[%emt 00:00:13]} 17. Bh6 {[%clk 00:01:51]} {[%emt 00:00:12]}
Ng7 {[%clk 00:00:31]} 18. Qg4 {[%clk 00:01:46]} {[%emt 00:00:08]} Rf7 {[%clk
00:00:07]} {[%emt 00:00:25]} 19. Bxg7 {[%clk 00:01:20]} {[%emt 00:00:29]} Kxg7
{[%clk 00:00:09]} {[%emt 00:00:01]} 20. Nxe6+ {[%clk 00:01:06]} {[%emt
00:00:16]} Bxe6 {[%clk 00:00:10]} {[%emt 00:00:01]} 21. Qxe6 {[%clk 00:01:06]}
{[%emt 00:00:02]} Rd8 {[%clk 00:00:05]} {[%emt 00:00:07]} 22. Bxd5 {[%clk
00:00:59]} {[%emt 00:00:08]} Rf2 {[%clk 00:00:06]} 23. c4 {[%clk 00:00:53]}
{[%emt 00:00:09]} Bc5 {[%clk 00:00:06]} {[%emt 00:00:02]} 24. Rf1 {[%clk
00:00:33]} {[%emt 00:00:22]} Rdf8 {[%clk 00:00:08]} 25. Bg2 {[%clk 00:00:30]}
{[%emt 00:00:06]} Rxf1+ {[%clk 00:00:05]} {[%emt 00:00:04]} 26. Rxf1 {[%clk
00:00:30]} {[%emt 00:00:01]} Rxf1+ {[%clk 00:00:06]} {[%emt 00:00:02]} 27. Bxf1
{[%clk 00:00:32]} Qd8 {[%clk 00:00:05]} {[%emt 00:00:02]} 28. Qd5 {[%clk
00:00:25]} {[%emt 00:00:09]} Qf8 {[%clk 00:00:06]} {[%emt 00:00:01]} 29. Qg2
{[%clk 00:00:10]} {[%emt 00:00:17]} Qf5 {[%clk 00:00:07]} 30. Qe2 {[%clk
00:00:11]} {[%emt 00:00:03]} Bd4 {[%clk 00:00:04]} {[%emt 00:00:04]} 31. e6
{[%clk 00:00:11]} {[%emt 00:00:02]} Bxb2 {[%clk 00:00:05]} {[%emt 00:00:01]} 32.
Qxb2+ {[%clk 00:00:12]} {[%emt 00:00:01]} 1-0

[Event "MČR v bleskovém šachu družstev 2019"]
[Site "Teplice, Czech Republic"]
[Date "2019.09.14"]
[Round "3.5"]
[White "Jirovsky, Milos"]
[Black "Formanek, Martin"]
[Result "1-0"]
[TimeControl "3 mim. + 2 s"]
[WhiteTitle "GM"]
[WhiteFideId "303224"]
[BlackFideId "316768"]
[WhiteElo "2499"]
[BlackElo "2230"]

1. Nf3 {[%clk 00:03:03]} {[%emt 00:29:24]} g6 {[%clk 00:03:02]} {[%emt
00:00:10]} 2. d4 {[%clk 00:03:02]} {[%emt 00:00:02]} Bg7 {[%clk 00:03:02]}
{[%emt 00:00:02]} 3. g3 {[%clk 00:03:04]} d6 {[%clk 00:03:03]} {[%emt
00:00:02]} 4. Bg2 {[%clk 00:03:05]} Nc6 {[%clk 00:02:57]} {[%emt 00:00:08]} 5.
O-O {[%clk 00:03:02]} {[%emt 00:00:04]} e5 {[%clk 00:02:55]} {[%emt 00:00:05]}
6. dxe5 {[%clk 00:03:00]} {[%emt 00:00:04]} dxe5 {[%clk 00:02:54]} {[%emt
00:00:02]} 7. Qxd8+ {[%clk 00:02:54]} {[%emt 00:00:08]} Nxd8 {[%clk 00:02:55]}
{[%emt 00:00:02]} 8. Nc3 {[%clk 00:02:54]} {[%emt 00:00:02]} Ne6 {[%clk
00:02:35]} {[%emt 00:00:22]} 9. Rd1 {[%clk 00:02:31]} {[%emt 00:00:25]} Ne7
{[%clk 00:02:29]} {[%emt 00:00:08]} 10. a4 {[%clk 00:02:08]} {[%emt 00:00:25]}
O-O {[%clk 00:02:24]} {[%emt 00:00:07]} 11. a5 {[%clk 00:02:03]} {[%emt
00:00:06]} a6 {[%clk 00:02:20]} {[%emt 00:00:06]} 12. Ra4 {[%clk 00:01:46]}
{[%emt 00:00:19]} h6 {[%clk 00:02:10]} {[%emt 00:00:13]} 13. b3 {[%clk
00:01:38]} {[%emt 00:00:09]} f5 {[%clk 00:02:10]} {[%emt 00:00:02]} 14. Ba3
{[%clk 00:01:36]} {[%emt 00:00:05]} c5 {[%clk 00:01:45]} {[%emt 00:00:27]} 15.
Nd5 {[%clk 00:01:25]} {[%emt 00:00:13]} Re8 {[%clk 00:01:43]} {[%emt 00:00:04]}
16. Nd2 {[%clk 00:01:15]} {[%emt 00:00:12]} e4 {[%clk 00:01:37]} {[%emt
00:00:07]} 17. Nxe7+ {[%clk 00:01:15]} {[%emt 00:00:02]} Rxe7 {[%clk 00:01:38]}
18. Rc4 {[%clk 00:01:09]} {[%emt 00:00:08]} Rc7 {[%clk 00:01:15]} {[%emt
00:00:24]} 19. f3 {[%clk 00:01:05]} {[%emt 00:00:07]} e3 {[%clk 00:01:09]}
{[%emt 00:00:09]} 20. Nf1 {[%clk 00:01:03]} {[%emt 00:00:04]} Bd7 {[%clk
00:01:04]} {[%emt 00:00:07]} 21. Nxe3 {[%clk 00:01:00]} {[%emt 00:00:05]} Bb5
{[%clk 00:01:05]} 22. Nd5 {[%clk 00:01:00]} {[%emt 00:00:02]} Rd7 {[%clk
00:00:53]} {[%emt 00:00:14]} 23. f4 {[%clk 00:00:59]} {[%emt 00:00:03]} Rad8
{[%clk 00:00:54]} {[%emt 00:00:01]} 24. Rd3 {[%clk 00:00:56]} {[%emt 00:00:06]}
Nd4 {[%clk 00:00:51]} {[%emt 00:00:05]} 25. Bxc5 {[%clk 00:00:47]} {[%emt
00:00:11]} Bxc4 {[%clk 00:00:50]} {[%emt 00:00:03]} 26. bxc4 {[%emt 00:00:02]}
Ne6 {[%clk 00:00:40]} {[%emt 00:00:11]} 27. Bb6 {[%clk 00:00:48]} {[%emt
00:00:02]} Kf7 {[%clk 00:00:20]} {[%emt 00:00:22]} 28. Bxd8 {[%clk 00:00:49]}
{[%emt 00:00:01]} Rxd8 {[%clk 00:00:21]} {[%emt 00:00:01]} 29. Nb6 {[%clk
00:00:47]} {[%emt 00:00:04]} Bd4+ {[%clk 00:00:18]} {[%emt 00:00:05]} 30. e3
{[%clk 00:00:45]} {[%emt 00:00:03]} Bxb6 {[%clk 00:00:15]} {[%emt 00:00:05]} 31.
axb6 {[%clk 00:00:47]} Rc8 {[%clk 00:00:14]} {[%emt 00:00:03]} 32. Bxb7 {[%clk
00:00:46]} {[%emt 00:00:02]} Rxc4 {[%clk 00:00:16]} 33. Bd5 {[%clk 00:00:45]}
{[%emt 00:00:03]} Rxc2 {[%clk 00:00:16]} {[%emt 00:00:02]} 34. b7 {[%clk
00:00:46]} {[%emt 00:00:02]} Rb2 {[%clk 00:00:16]} {[%emt 00:00:02]} 35. Rb3
{[%clk 00:00:47]} {[%emt 00:00:01]} 1-0

[Event "MČR v bleskovém šachu družstev 2019"]
[Site "Teplice, Czech Republic"]
[Date "2019.09.14"]
[Round "3.6"]
[White "Dvorak, Jan"]
[Black "Sokolov, Alexander"]
[Result "0-1"]
[TimeControl "3 mim. + 2 s"]
[BlackTitle "FM"]
[WhiteFideId "314870"]
[BlackFideId "4119177"]
[WhiteElo "2229"]
[BlackElo "2417"]

1. d4 {[%clk 00:03:01]} {[%emt 00:00:02]} Nf6 {[%clk 00:03:03]} 2. c4 {[%clk
00:03:03]} {[%emt 00:00:01]} g6 {[%clk 00:03:05]} 3. Nc3 {[%clk 00:03:03]}
{[%emt 00:00:03]} Bg7 {[%clk 00:03:06]} 4. e4 {[%clk 00:03:03]} {[%emt
00:00:02]} d6 {[%clk 00:03:07]} {[%emt 00:00:01]} 5. Nge2 {[%clk 00:03:04]}
{[%emt 00:00:01]} O-O {[%clk 00:03:07]} {[%emt 00:00:02]} 6. Ng3 {[%clk
00:03:05]} e5 {[%clk 00:03:03]} {[%emt 00:00:07]} 7. d5 {[%clk 00:03:06]}
{[%emt 00:00:01]} a5 {[%clk 00:03:02]} {[%emt 00:00:02]} 8. Be2 {[%clk
00:03:00]} {[%emt 00:00:08]} Na6 {[%clk 00:03:03]} {[%emt 00:00:01]} 9. h4
{[%clk 00:03:00]} {[%emt 00:00:03]} h5 {[%clk 00:02:58]} {[%emt 00:00:07]} 10.
Bg5 {[%clk 00:02:58]} {[%emt 00:00:03]} Bd7 {[%clk 00:02:57]} {[%emt 00:00:02]}
11. Qd2 {[%clk 00:02:53]} {[%emt 00:00:08]} Nc5 {[%clk 00:02:47]} {[%emt
00:00:12]} 12. O-O {[%clk 00:02:07]} {[%emt 00:00:47]} Qe8 {[%clk 00:02:01]}
{[%emt 00:00:47]} 13. f4 {[%clk 00:01:57]} {[%emt 00:00:12]} exf4 {[%clk
00:01:50]} {[%emt 00:00:13]} 14. Qxf4 {[%clk 00:01:50]} {[%emt 00:00:10]} Nh7
{[%clk 00:01:41]} {[%emt 00:00:11]} 15. Bh6 {[%clk 00:01:45]} {[%emt 00:00:07]}
Qe5 {[%clk 00:01:37]} {[%emt 00:00:06]} 16. Bxg7 {[%clk 00:01:30]} {[%emt
00:00:17]} Qxf4 {[%clk 00:01:36]} {[%emt 00:00:03]} 17. Rxf4 {[%clk 00:01:31]}
Kxg7 {[%clk 00:01:37]} {[%emt 00:00:02]} 18. Raf1 {[%clk 00:01:30]} {[%emt
00:00:03]} Rae8 {[%clk 00:01:22]} {[%emt 00:00:18]} 19. a3 {[%clk 00:01:21]}
{[%emt 00:00:11]} a4 {[%clk 00:01:23]} 20. Nh1 {[%clk 00:00:52]} {[%emt
00:00:31]} Re7 {[%clk 00:01:23]} {[%emt 00:00:01]} 21. Nf2 {[%clk 00:00:52]}
{[%emt 00:00:02]} Rfe8 {[%clk 00:01:13]} {[%emt 00:00:12]} 22. Nd3 {[%clk
00:00:53]} {[%emt 00:00:01]} Nxd3 {[%clk 00:00:54]} {[%emt 00:00:21]} 23. Bxd3
{[%clk 00:00:54]} f6 {[%clk 00:00:51]} {[%emt 00:00:05]} 24. Bc2 {[%clk
00:00:53]} {[%emt 00:00:03]} Ra8 {[%clk 00:00:52]} 25. Ne2 {[%clk 00:00:52]}
{[%emt 00:00:04]} b5 {[%clk 00:00:51]} {[%emt 00:00:04]} 26. Bd3 {[%clk
00:00:45]} {[%emt 00:00:09]} bxc4 {[%clk 00:00:51]} {[%emt 00:00:02]} 27. Bxc4
Rb8 28. Rb1 {[%clk 00:00:39]} {[%emt 00:00:08]} c6 {[%clk 00:00:50]} {[%emt
00:00:04]} 29. Nd4 {[%clk 00:00:39]} {[%emt 00:00:03]} cxd5 {[%clk 00:00:51]}
{[%emt 00:00:01]} 30. Bxd5 {[%clk 00:00:37]} {[%emt 00:00:03]} Ree8 {[%clk
00:00:46]} {[%emt 00:00:07]} 31. Rf2 {[%clk 00:00:35]} {[%emt 00:00:04]} Rec8
{[%clk 00:00:47]} {[%emt 00:00:01]} 32. Rc2 {[%clk 00:00:27]} {[%emt 00:00:11]}
Rxc2 {[%clk 00:00:44]} {[%emt 00:00:05]} 33. Nxc2 {[%clk 00:00:28]} f5 {[%clk
00:00:40]} {[%emt 00:00:07]} 34. Nd4 {[%clk 00:00:26]} {[%emt 00:00:03]} Nf6
{[%clk 00:00:41]} 35. Bc6 {[%clk 00:00:25]} {[%emt 00:00:03]} fxe4 {[%clk
00:00:40]} {[%emt 00:00:03]} 36. Bxd7 {[%clk 00:00:24]} {[%emt 00:00:03]} Nxd7
{[%clk 00:00:41]} 37. Rf1 {[%clk 00:00:23]} {[%emt 00:00:03]} Nc5 {[%clk
00:00:38]} {[%emt 00:00:05]} 38. Rf2 {[%clk 00:00:21]} {[%emt 00:00:04]} d5
{[%clk 00:00:37]} {[%emt 00:00:03]} 39. Rc2 {[%clk 00:00:20]} {[%emt 00:00:03]}
Nd3 {[%clk 00:00:37]} {[%emt 00:00:02]} 40. Rc7+ {[%clk 00:00:21]} Kf6 {[%clk
00:00:38]} {[%emt 00:00:02]} 41. Rc6+ {[%clk 00:00:21]} {[%emt 00:00:01]} Ke5
{[%clk 00:00:39]} {[%emt 00:00:01]} 42. Ne6 {[%clk 00:00:13]} {[%emt 00:00:10]}
Rxb2 {[%clk 00:00:39]} {[%emt 00:00:02]} 43. Nc7 {[%clk 00:00:11]} {[%emt
00:00:03]} Nf4 {[%clk 00:00:40]} {[%emt 00:00:02]} 44. Rc5 {[%clk 00:00:08]}
{[%emt 00:00:05]} Rxg2+ {[%clk 00:00:40]} {[%emt 00:00:01]} 0-1

[Event "MČR v bleskovém šachu družstev 2019"]
[Site "Teplice, Czech Republic"]
[Date "2019.09.14"]
[Round "3.7"]
[White "Dolezal, Radoslav"]
[Black "Chmel, Kristian"]
[Result "1-0"]
[TimeControl "3 mim. + 2 s"]
[WhiteTitle "IM"]
[WhiteFideId "304735"]
[BlackFideId "344281"]
[WhiteElo "2359"]
[BlackElo "2097"]

1. d4 {[%clk 00:03:00]} {[%emt 00:00:03]} Nf6 {[%clk 00:03:03]} {[%emt
00:00:02]} 2. Bg5 {[%clk 00:02:59]} {[%emt 00:00:03]} Ne4 {[%clk 00:03:02]}
{[%emt 00:00:03]} 3. Bf4 {[%clk 00:03:00]} c5 {[%clk 00:03:02]} {[%emt
00:00:03]} 4. f3 {[%clk 00:03:00]} {[%emt 00:00:01]} Nf6 {[%clk 00:02:56]}
{[%emt 00:00:08]} 5. d5 {[%clk 00:02:11]} {[%emt 00:00:52]} g6 {[%clk
00:02:53]} {[%emt 00:00:05]} 6. c4 {[%clk 00:02:01]} {[%emt 00:00:12]} Bg7
{[%clk 00:02:52]} {[%emt 00:00:03]} 7. Nc3 {[%clk 00:02:02]} O-O {[%clk
00:02:46]} {[%emt 00:00:09]} 8. e4 {[%clk 00:02:02]} {[%emt 00:00:02]} d6
{[%clk 00:02:37]} {[%emt 00:00:11]} 9. Bd3 {[%clk 00:02:01]} {[%emt 00:00:03]}
e6 {[%clk 00:02:32]} {[%emt 00:00:07]} 10. Nge2 {[%clk 00:01:41]} {[%emt
00:00:22]} exd5 {[%clk 00:02:22]} {[%emt 00:00:12]} 11. cxd5 {[%clk 00:01:42]}
{[%emt 00:00:02]} a6 {[%clk 00:01:59]} {[%emt 00:00:25]} 12. a4 {[%clk
00:01:42]} {[%emt 00:00:01]} Nbd7 {[%clk 00:01:57]} {[%emt 00:00:05]} 13. Bxd6
{[%clk 00:01:32]} {[%emt 00:00:12]} Re8 {[%clk 00:01:57]} {[%emt 00:00:02]} 14.
a5 {[%clk 00:01:00]} {[%emt 00:00:34]} b5 {[%clk 00:01:43]} {[%emt 00:00:15]}
15. O-O {[%clk 00:00:59]} {[%emt 00:00:03]} c4 {[%clk 00:01:33]} {[%emt
00:00:12]} 16. Bc2 {[%clk 00:01:00]} {[%emt 00:00:01]} Bb7 {[%clk 00:01:22]}
{[%emt 00:00:13]} 17. Kh1 {[%clk 00:00:51]} {[%emt 00:00:10]} Ne5 {[%clk
00:01:12]} {[%emt 00:00:12]} 18. Bb4 {[%clk 00:00:40]} {[%emt 00:00:13]} Nh5
{[%clk 00:01:11]} {[%emt 00:00:03]} 19. Qd2 {[%clk 00:00:34]} {[%emt 00:00:08]}
Qh4 {[%clk 00:01:04]} {[%emt 00:00:09]} 20. Rad1 {[%clk 00:00:30]} {[%emt
00:00:05]} Rad8 {[%clk 00:00:49]} {[%emt 00:00:17]} 21. Qe1 {[%clk 00:00:31]}
{[%emt 00:00:01]} Qf6 {[%clk 00:00:43]} {[%emt 00:00:08]} 22. Qf2 {[%clk
00:00:25]} {[%emt 00:00:06]} Bh6 {[%clk 00:00:38]} {[%emt 00:00:07]} 23. Bc5
{[%clk 00:00:18]} {[%emt 00:00:11]} Qg7 {[%clk 00:00:29]} {[%emt 00:00:11]} 24.
Bd4 {[%clk 00:00:13]} {[%emt 00:00:07]} f6 {[%clk 00:00:30]} 25. Na2 {[%clk
00:00:13]} {[%emt 00:00:03]} g5 {[%clk 00:00:28]} {[%emt 00:00:04]} 26. Nb4
{[%clk 00:00:13]} {[%emt 00:00:01]} g4 {[%clk 00:00:25]} {[%emt 00:00:06]} 27.
f4 {[%clk 00:00:10]} {[%emt 00:00:05]} g3 {[%clk 00:00:21]} {[%emt 00:00:05]}
28. Nxg3 {[%clk 00:00:11]} Ng4 {[%clk 00:00:22]} {[%emt 00:00:01]} 29. Qf3
{[%clk 00:00:09]} {[%emt 00:00:04]} Bc8 {[%clk 00:00:14]} {[%emt 00:00:10]} 30.
Nxh5 {[%clk 00:00:09]} {[%emt 00:00:03]} Qg6 {[%clk 00:00:13]} {[%emt
00:00:03]} 31. Ng3 {[%clk 00:00:08]} {[%emt 00:00:02]} Rf8 {[%clk 00:00:12]}
{[%emt 00:00:03]} 32. f5 {[%clk 00:00:09]} {[%emt 00:00:01]} Qg5 {[%clk
00:00:11]} {[%emt 00:00:03]} 33. Nc6 {[%clk 00:00:08]} {[%emt 00:00:03]} Qh4
{[%clk 00:00:11]} {[%emt 00:00:02]} 34. h3 {[%clk 00:00:09]} {[%emt 00:00:01]}
Rd7 {[%clk 00:00:10]} {[%emt 00:00:03]} 35. Qxg4+ {[%clk 00:00:10]} {[%emt
00:00:01]} Qxg4 {[%clk 00:00:08]} {[%emt 00:00:04]} 36. hxg4 {[%clk 00:00:11]}
Rg7 {[%clk 00:00:08]} {[%emt 00:00:02]} 37. Nh5 {[%clk 00:00:10]} {[%emt
00:00:03]} Rxg4 {[%clk 00:00:06]} {[%emt 00:00:04]} 38. Nxf6+ {[%clk 00:00:10]}
{[%emt 00:00:01]} Rxf6 {[%clk 00:00:06]} {[%emt 00:00:03]} 39. Bxf6 {[%clk
00:00:12]} Rg3 {[%clk 00:00:05]} {[%emt 00:00:04]} 40. Be5 {[%clk 00:00:10]}
{[%emt 00:00:03]} Rg4 {[%clk 00:00:04]} {[%emt 00:00:03]} 41. Ne7+ {[%clk
00:00:10]} {[%emt 00:00:02]} Kf7 {[%clk 00:00:04]} {[%emt 00:00:02]} 42. Nxc8
{[%clk 00:00:12]} {[%emt 00:00:01]} Rh4+ {[%clk 00:00:03]} {[%emt 00:00:03]} 43.
Bh2 {[%clk 00:00:13]} 1-0